bitfinex/quotes_SOLUSD_20260221
["timestamp","ask_amount","ask_price","bid_price","bid_amount"]
[1771634949364,0.47839849,84.477,84.44,4.31447906]
[1771634949665,0.47839849,84.477,84.44,4.78278996]
[1771634949871,0.47839849,84.477,84.441,0.4683109]
[1771634950166,0.47839849,84.477,84.442,0.4683109]
[1771634950851,0.47839849,84.469,84.441,11.84258831]
[1771634951158,0.47839849,84.468,84.441,11.84258831]
[1771634952464,0.47839849,84.468,84.441,0.4683109]
[1771634955872,0.47839849,84.468,84.442,11.84244807]
[1771634956172,0.47839849,84.468,84.443,0.4683109]
[1771634958251,0.47839849,84.466,84.443,0.4683109]
[1771634964674,0.47839849,84.466,84.445,0.4683109]
[1771634967460,0.47839849,84.466,84.447,0.4683109]
[1771634969870,0.47839849,84.466,84.451,0.4683109]
[1771634970166,0.47839849,84.479,84.451,0.4683109]
[1771634970369,4.31447906,84.49,84.461,0.4683109]
[1771634970370,0.47839849,84.489,84.461,0.4683109]
[1771634972478,0.47839849,84.494,84.47,4.31447906]
[1771634972687,0.1,84.54,84.481,0.4683109]
[1771634972688,0.47839849,84.518,84.481,0.4683109]
[1771634975077,0.47839849,84.516,84.483,0.4683109]
[1771634976682,0.47839849,84.516,84.485,0.4683109]
[1771634978674,0.47839849,84.516,84.487,0.49685759]
[1771634979664,0.47839849,84.516,84.489,0.49685759]
[1771634980379,0.45169151,84.514,84.489,0.49685759]
[1771634983667,0.45169151,84.512,84.482,0.49685759]
[1771634988273,0.45169151,84.51,84.482,0.49685759]
[1771634989282,0.45169151,84.51,84.49,4.31447906]
[1771634989475,0.45169151,84.51,84.491,0.49685759]
[1771634998396,0.45169151,84.525,84.493,0.49685759]
[1771634998598,0.45169151,84.528,84.493,0.49685759]
[1771634998800,0.45169151,84.528,84.492,11.83544004]
[1771634998801,3.79383402,84.54,84.511,0.49685759]
[1771634998802,0.45169151,84.532,84.511,0.49685759]
[1771634999710,29.67183046,84.54,84.511,0.49685759]
[1771634999711,0.45169151,84.538,84.511,0.49685759]
[1771635000207,0.45169151,84.538,84.5,4.30733731]
[1771635000506,0.45169151,84.519,84.481,12.33383868]
[1771635000697,0.45169151,84.519,84.482,0.49685759]
[1771635001013,0.45169151,84.509,84.47,4.30733731]
[1771635001186,0.45169151,84.509,84.471,0.49685759]
[1771635002401,11.83319922,84.508,84.471,0.49685759]
[1771635002608,0.45169151,84.507,84.471,0.49685759]
[1771635003102,0.45169151,84.507,84.473,0.49685759]
[1771635003314,0.45169151,84.499,84.473,0.49685759]
[1771635005809,0.45169151,84.497,84.473,0.49685759]
[1771635005992,0.45169151,84.497,84.468,0.49685759]
[1771635006992,4.30733731,84.48,84.459,11.84002218]
[1771635007196,4.30733731,84.48,84.447,29.60428997]
[1771635007197,11.83487975,84.496,84.441,0.49685759]
[1771635007198,0.45169151,84.469,84.441,0.49685759]
[1771635008635,0.45169151,84.469,84.442,0.47891793]
[1771635009912,0.45169151,84.469,84.441,11.84258831]
[1771635010308,0.45169151,84.469,84.442,0.47891793]
[1771635011329,0.45169151,84.469,84.444,0.47891793]
[1771635015017,0.45169151,84.469,84.446,0.47891793]
[1771635018629,0.45169151,84.469,84.448,0.47891793]
[1771635021217,0.49553833,84.459,84.432,0.47891793]
[1771635021450,0.49553833,84.459,84.431,41.45396832]
[1771635021623,0.49553833,84.459,84.432,0.47891793]
[1771635022348,0.49553833,84.464,84.432,0.47891793]
[1771635023870,4.30733731,84.47,84.434,0.47891793]
[1771635024053,0.49553833,84.474,84.441,0.47891793]
[1771635025624,0.49553833,84.474,84.443,0.47891793]
[1771635028759,0.49553833,84.474,84.44,4.30733731]
[1771635028760,4.80287564,84.47,84.445,0.47891793]
[1771635029850,0.49553833,84.469,84.447,0.47891793]
[1771635031534,0.49553833,84.469,84.449,0.47891793]
[1771635033836,0.49553833,84.469,84.451,0.47891793]
[1771635034957,0.49553833,84.467,84.443,11.84219808]
[1771635036852,0.49553833,84.467,84.438,11.84300907]
[1771635037151,0.49553833,84.467,84.439,0.47891793]
[1771635038651,0.49553833,84.467,84.44,11.84272856]
[1771635039036,0.49553833,84.467,84.441,0.45788904]
[1771635044656,0.49553833,84.467,84.443,0.45788904]
[1771635046458,0.45451766,84.471,84.443,0.45788904]
[1771635046646,0.45451766,84.471,84.445,0.45788904]
[1771635048775,0.45451766,84.486,84.451,0.45788904]
[1771635051461,11.83642066,84.485,84.452,11.8410458]
[1771635051661,0.45451766,84.484,84.452,12.29893484]
[1771635052464,0.45451766,84.479,84.452,12.29893484]
[1771635052764,0.45451766,84.479,84.448,0.45788904]
[1771635053064,0.45451766,84.469,84.435,11.84340108]
[1771635053364,0.45451766,84.459,84.43,11.84403284]
[1771635056666,0.45451766,84.459,84.43,0.45788904]
[1771635056861,0.45451766,84.459,84.431,0.45788904]
[1771635057959,0.45451766,84.459,84.432,11.84385067]
[1771635058967,0.45451766,84.459,84.432,12.30173971]
[1771635060569,11.84020459,84.458,84.425,11.84470576]
[1771635060756,0.45451766,84.457,84.426,0.45788904]
[1771635061977,11.84048498,84.456,84.426,0.45788904]
[1771635062182,0.45451766,84.455,84.426,0.45788904]
[1771635064369,0.45451766,84.455,84.42,4.3136835]
[1771635064370,0.45451766,84.455,84.428,0.45788904]
[1771635064670,0.45451766,84.453,84.428,0.45788904]
[1771635074787,0.47921548,84.451,84.428,0.45788904]
[1771635078484,0.47921548,84.451,84.43,0.49317788]
[1771635081989,0.47921548,84.451,84.429,11.84427151]
[1771635083090,0.47921548,84.451,84.426,0.49317788]
[1771635092698,0.47921548,84.451,84.428,0.49317788]
[1771635102398,11.84126654,84.451,84.423,0.46065601]
[1771635102605,0.48249347,84.45,84.423,0.46065601]
[1771635105191,59.16699545,84.507,84.441,0.46065601]
[1771635105494,29.59044992,84.487,84.441,0.46065601]
[1771635105689,3.69383402,84.484,84.441,0.46065601]
[1771635105889,0.28432314,84.483,84.441,0.46065601]
[1771635106306,3.69383402,84.484,84.441,0.46065601]
[1771635106807,0.28432314,84.483,84.441,0.46065601]
[1771635107001,4.3136835,84.48,84.441,0.46065601]
[1771635107203,0.48249347,84.474,84.443,0.46065601]
[1771635113009,0.48249347,84.472,84.445,0.46065601]
[1771635114718,0.48249347,84.469,84.445,0.46065601]
[1771635115102,0.48249347,84.469,84.446,11.84188712]
[1771635115302,0.48249347,84.469,84.447,0.46065601]
[1771635119814,0.48249347,84.473,84.451,0.46065601]
[1771635122011,0.48249347,84.471,84.451,0.46065601]
[1771635124101,11.83824225,84.472,84.433,29.60915779]
[1771635124102,4.3121262,84.48,84.453,0.46065601]
[1771635124425,0.48249347,84.479,84.453,0.46065601]
[1771635126727,0.48249347,84.479,84.455,0.46065601]
[1771635127225,0.48249347,84.477,84.455,0.46065601]
[1771635129508,0.48249347,84.477,84.457,0.4840693]
[1771635129803,0.46200056,84.498,84.461,0.4840693]
[1771635130006,0.46200056,84.498,84.471,0.4840693]
[1771635130312,4.3121262,84.51,84.456,41.44169744]
[1771635130313,11.83384989,84.504,84.481,0.4840693]
[1771635130526,0.46200056,84.503,84.481,0.4840693]
[1771635131223,0.46200056,84.501,84.481,0.4840693]
[1771635132335,0.46200056,84.499,84.473,0.4840693]
[1771635132510,0.46200056,84.489,84.463,11.83943361]
[1771635132921,0.46200056,84.489,84.464,0.4840693]
[1771635138527,0.46200056,84.489,84.466,0.4840693]
[1771635139330,0.46200056,84.489,84.471,0.4840693]
[1771635139512,0.46200056,84.494,84.471,0.4840693]
[1771635140422,11.83529996,84.493,84.471,0.4840693]
[1771635140732,0.46200056,84.492,84.471,0.4840693]
[1771635143430,4.3121262,84.51,84.457,0.4840693]
[1771635143431,0.46200056,84.489,84.457,0.4840693]
[1771635146718,0.46200056,84.487,84.457,0.4840693]
[1771635148536,0.46200056,84.485,84.457,0.4840693]
[1771635152741,11.83656076,84.484,84.457,0.4840693]
[1771635152923,0.46200056,84.483,84.457,0.4840693]
[1771635154227,11.83684098,84.482,84.457,0.4840693]
[1771635154434,0.46200056,84.481,84.457,0.4840693]
[1771635154747,0.46200056,84.481,84.455,0.4840693]
[1771635163839,11.83712121,84.48,84.455,0.4840693]
[1771635164040,0.48877281,84.479,84.455,0.4840693]
[1771635164455,0.48877281,84.479,84.446,0.49374483]
[1771635170456,0.48877281,84.477,84.451,0.49374483]
[1771635172460,0.48877281,84.475,84.44,4.3121262]
[1771635172766,0.48877281,84.475,84.432,0.49374483]
[1771635172946,0.48877281,84.469,84.433,0.49374483]
[1771635175153,0.48877281,84.467,84.435,0.49374483]
[1771635177969,0.48877281,84.465,84.437,0.49374483]
[1771635179968,0.48877281,84.463,84.437,0.49374483]
[1771635180765,0.48877281,84.463,84.439,0.49374483]
[1771635182769,0.48877281,84.463,84.441,0.49374483]
[1771635186773,0.48877281,84.461,84.441,0.49374483]
[1771635190172,11.8380981,84.474,84.443,0.47470837]
[1771635190373,0.46654752,84.473,84.443,0.47470837]
[1771635192893,0.46654752,84.473,84.44,4.31302083]
[1771635192894,0.46654752,84.473,84.445,0.47470837]
[1771635197462,0.46654752,84.471,84.445,0.47470837]
[1771635199965,0.46654752,84.471,84.447,0.47470837]
[1771635207499,0.46654752,84.471,84.449,0.47470837]
[1771635214784,0.46654752,84.479,84.449,0.47470837]
[1771635215486,0.46654752,84.479,84.449,12.31606133]
[1771635215688,0.46654752,84.479,84.452,0.47470837]
[1771635219605,0.46654752,84.479,84.454,0.46711562]
[1771635226713,11.83740145,84.478,84.454,0.46711562]
[1771635226888,0.46726745,84.477,84.454,0.46711562]
[1771635228898,0.46726745,84.475,84.454,0.46711562]
[1771635235223,0.46726745,84.469,84.43,0.46711562]
[1771635235521,0.46726745,84.469,84.431,0.46711562]
[1771635237313,0.46726745,84.469,84.433,0.46711562]
[1771635238116,0.46726745,84.469,84.433,0.24911336]
[1771635240011,4.31302083,84.47,84.43,33.92334891]
[1771635240012,4.31302083,84.46,84.434,11.84357012]
[1771635240214,0.46726745,84.459,84.435,0.46711562]
[1771635242306,0.46726745,84.457,84.435,0.46711562]
[1771635251416,0.47891559,84.463,84.441,0.45729697]
[1771635251623,0.47891559,84.47,84.443,0.45729697]
[1771635252009,0.47891559,84.468,84.443,0.45729697]
[1771635254127,0.47891559,84.466,84.443,0.45729697]
[1771635264215,0.47891559,84.466,84.444,11.84216759]
[1771635264718,0.47891559,84.466,84.444,12.29946456]
[1771635264915,0.47891559,84.466,84.445,0.45729697]
[1771635267221,0.47891559,84.471,84.447,0.45729697]
[1771635272113,0.47891559,84.471,84.448,11.84160666]
[1771635272418,0.47891559,84.471,84.449,0.45729697]
[1771635273632,0.47891559,84.476,84.449,0.45729697]
[1771635273831,3.69383402,84.481,84.451,0.45729697]
[1771635274136,4.17274961,84.481,84.452,11.8410458]
[1771635274315,0.47891559,84.48,84.453,0.45729697]
[1771635276832,0.47891559,84.48,84.454,11.84076538]
[1771635277017,0.47891559,84.48,84.455,0.45729697]
[1771635277338,4.79304941,84.48,84.455,0.45729697]
[1771635277521,0.45645333,84.479,84.455,0.45729697]
[1771635277722,11.83726133,84.479,84.455,0.45729697]
[1771635277922,0.45645333,84.478,84.455,0.45729697]
[1771635285855,0.45645333,84.476,84.453,11.84079643]
[1771635286226,0.45645333,84.476,84.453,12.3307075]
[1771635286547,0.45645333,84.476,84.453,0.48991107]
[1771635288645,3.69383402,84.485,84.418,0.48991107]
[1771635288646,0.45645333,84.474,84.418,0.48991107]
[1771635288850,0.45645333,84.474,84.431,0.48991107]
[1771635289361,0.45645333,84.474,84.441,0.48991107]
[1771635292649,0.45645333,84.472,84.443,0.48991107]
[1771635296653,0.45645333,84.472,84.445,0.48991107]
[1771635297637,0.45645333,84.47,84.445,0.48991107]
[1771635298651,4.31413382,84.48,84.447,0.48991107]
[1771635298652,4.15028735,84.48,84.447,0.48991107]
[1771635298866,13.62284524,84.509,84.471,0.48991107]
[1771635299165,22.21164349,84.519,84.481,0.48991107]
[1771635299166,11.83275703,84.512,84.481,0.48991107]
[1771635299463,0.45645333,84.509,84.481,0.48991107]
[1771635300341,0.45645333,84.509,84.446,41.44660492]
[1771635300342,0.45645333,84.499,84.46,4.31413382]
[1771635300743,0.45645333,84.489,84.461,11.83978404]
[1771635301058,11.83459963,84.498,84.451,11.84118601]
[1771635301059,0.45645333,84.479,84.451,11.84118601]
[1771635302258,0.45645333,84.479,84.452,0.33965292]
[1771635303164,0.45645333,84.479,84.451,0.33965292]
[1771635303371,0.45645333,84.477,84.451,12.18083893]
[1771635304156,0.45645333,84.477,84.452,0.33965292]
[1771635305554,0.45645333,84.477,84.44,4.31103085]
[1771635305555,0.45645333,84.477,84.454,0.33965292]
[1771635306671,0.45645333,84.475,84.445,0.33965292]
[1771635306856,0.45645333,84.475,84.444,11.84207657]
[1771635307051,0.45645333,84.475,84.444,12.18172949]
[1771635307359,0.45645333,84.475,84.445,0.33965292]
[1771635308271,0.45645333,84.475,84.446,11.84188712]
[1771635308469,0.45645333,84.475,84.447,0.33965292]
[1771635308973,0.45415628,84.473,84.447,0.33965292]
[1771635312766,0.45415628,84.471,84.447,0.33965292]
[1771635316691,0.45415628,84.471,84.448,11.84160666]
[1771635316860,0.45415628,84.471,84.451,0.33965292]
[1771635319582,0.45415628,84.471,84.453,0.33965292]
[1771635319882,0.45415628,84.471,84.452,11.8410458]
[1771635320085,0.45415628,84.471,84.452,12.18069872]
[1771635321785,0.45415628,84.471,84.452,11.8410458]
[1771635321966,0.45415628,84.471,84.454,11.84076538]
[1771635323688,0.45415628,84.471,84.449,12.18102276]
[1771635331396,0.45415628,84.471,84.45,0.33965292]
[1771635331602,11.83608094,84.488,84.461,0.46137164]
[1771635332794,4.31103085,84.49,84.461,0.46137164]
[1771635333598,0.45415628,84.489,84.461,0.46137164]
[1771635333904,0.45415628,84.489,84.456,0.46137164]
[1771635334079,0.45415628,84.479,84.455,11.84059982]
[1771635335486,0.45415628,84.479,84.455,12.30197146]
[1771635335790,0.45415628,84.479,84.456,0.46137164]
[1771635336402,0.45415628,84.479,84.455,11.84059982]
[1771635336604,0.45415628,84.479,84.455,12.30197146]
[1771635339507,0.45415628,84.479,84.444,29.60523214]
[1771635339508,0.45056887,84.477,84.444,0.45567054]
[1771635339719,0.45056887,84.469,84.434,0.45567054]
[1771635343094,0.45056887,84.467,84.441,0.45567054]
[1771635347800,0.45056887,84.465,84.441,0.45567054]
[1771635350313,0.45056887,84.463,84.441,0.45567054]
[1771635351308,11.83936351,84.464,84.41,0.45567054]
[1771635351309,0.45056887,84.449,84.41,0.45567054]
[1771635351619,0.45056887,84.439,84.41,0.45567054]
[1771635353406,0.45056887,84.437,84.41,0.45567054]
[1771635355614,11.84328959,84.436,84.41,0.45567054]
[1771635355921,0.45056887,84.435,84.41,0.45567054]
[1771635356304,0.45056887,84.435,84.412,0.45567054]
[1771635359422,4.31103085,84.45,84.421,0.45567054]
[1771635359624,11.84020459,84.458,84.43,4.31103085]
[1771635359803,11.84020459,84.458,84.431,0.45567054]
[1771635360804,15.81710017,84.467,84.431,0.45567054]
[1771635361219,0.28432314,84.461,84.431,0.45567054]
[1771635361427,0.45056887,84.46,84.431,0.45567054]
[1771635362331,0.45056887,84.459,84.431,0.45567054]
[1771635363016,0.45056887,84.464,84.433,0.45567054]
[1771635363910,0.45056887,84.464,84.434,11.84357012]
[1771635364110,0.45056887,84.464,84.435,0.45567054]
[1771635366025,0.45056887,84.464,84.437,0.45567054]
[1771635369310,0.49524314,84.462,84.437,0.45567054]
[1771635370224,0.49524314,84.449,84.414,0.46167407]
[1771635371338,0.49524314,84.449,84.415,0.46167407]
[1771635372338,0.49524314,84.447,84.415,0.46167407]
[1771635373617,11.84188712,84.446,84.416,11.84609552]
[1771635373814,0.49524314,84.445,84.42,4.31288708]
[1771635374136,0.49524314,84.454,84.421,0.46167407]
[1771635375433,0.49524314,84.449,84.421,0.46167407]
[1771635378139,0.49524314,84.447,84.421,0.46167407]
[1771635383056,0.49524314,84.445,84.421,0.46167407]
[1771635401740,4.31288708,84.45,84.421,0.46167407]
[1771635401941,0.45611703,84.451,84.421,0.46167407]
[1771635402139,0.45611703,84.454,84.423,0.49433743]
[1771635402741,11.84065195,84.455,84.423,0.49433743]
[1771635404061,0.45611703,84.458,84.425,0.49433743]
[1771635409378,0.45611703,84.456,84.427,0.49433743]
[1771635411145,0.45611703,84.456,84.43,4.31288708]
[1771635411345,22.21164349,84.467,84.431,0.49433743]
[1771635411560,4.31288708,84.47,84.431,0.49433743]
[1771635413069,11.83908318,84.466,84.431,0.49433743]
[1771635413269,12.13858808,84.466,84.433,0.49433743]
[1771635413568,0.2995049,84.465,84.433,0.49433743]
[1771635415269,0.2995049,84.463,84.435,0.49433743]
[1771635417062,4.31288708,84.47,84.44,4.31288708]
[1771635417252,12.13752139,84.474,84.443,0.49433743]
[1771635417571,0.2995049,84.489,84.451,0.49433743]
[1771635417776,4.31288708,84.48,84.451,0.49433743]
[1771635418070,0.2995049,84.479,84.451,0.49433743]
[1771635419355,0.2995049,84.477,84.451,0.49433743]
[1771635420370,0.2995049,84.469,84.447,0.49433743]
[1771635434490,0.2995049,84.469,84.449,0.48074065]
[1771635442477,0.2995049,84.473,84.449,0.48074065]
[1771635444486,0.2995049,84.473,84.451,0.48074065]
[1771635444792,11.83805656,84.474,84.451,0.48074065]
[1771635449100,0.2995049,84.478,84.45,4.31260772]
[1771635449101,0.2995049,84.483,84.453,0.48074065]
[1771635453884,0.2995049,84.483,84.455,0.48074065]
[1771635457411,0.2995049,84.487,84.461,0.48220824]
[1771635457787,11.83494446,84.496,84.471,0.48220824]
[1771635458806,0.2995049,84.495,84.471,0.48220824]
[1771635462110,3.69383402,84.506,84.481,0.48220824]
[1771635462293,0.2995049,84.51,84.481,0.48220824]
[1771635463213,0.2995049,84.508,84.481,0.48220824]
[1771635466615,0.2995049,84.506,84.481,0.48220824]
[1771635468206,0.2995049,84.504,84.481,0.48220824]
[1771635468402,0.2995049,84.504,84.483,0.48220824]
[1771635479523,0.2995049,84.508,84.483,0.48220824]
[1771635481520,0.2995049,84.517,84.491,0.48220824]
[1771635481706,0.2995049,84.515,84.491,0.48220824]
[1771635489516,0.58382804,84.523,84.492,0.46460488]
[1771635490029,0.2995049,84.52,84.492,0.46460488]
[1771635492927,0.2995049,84.518,84.492,0.46460488]
[1771635499338,11.83193913,84.517,84.492,0.46460488]
[1771635499539,0.2995049,84.516,84.492,0.46460488]
[1771635502945,11.83221913,84.515,84.492,0.46460488]
[1771635503132,0.2995049,84.514,84.492,0.46460488]
[1771635508230,0.2995049,84.518,84.492,0.46460488]
[1771635513782,0.2995049,84.522,84.5,4.30701037]
[1771635514060,4.40701037,84.54,84.512,0.46460488]
[1771635514061,0.1,84.54,84.512,0.46460488]
[1771635514362,0.1,84.54,84.521,0.46460488]
[1771635515961,0.1,84.539,84.521,0.46460488]
[1771635516755,0.1,84.539,84.515,0.46460488]
[1771635518162,0.1,84.538,84.515,0.46460488]
[1771635525166,4.30701037,84.53,84.515,0.46460488]
[1771635525969,0.1,84.535,84.515,0.46460488]
[1771635531669,0.1,84.55,84.52,4.30701037]
[1771635531871,104.4,84.589,84.506,41.41716877]
[1771635531872,0.45447277,84.64,84.551,0.28432314]
[1771635532074,4.30701037,84.59,84.55,4.30701037]
[1771635532368,0.5,84.579,84.54,4.30701037]
[1771635533173,0.5,84.579,84.541,41.40003074]
[1771635538178,0.5,84.559,84.527,11.83053935]
[1771635539161,0.5,84.559,84.527,29.57634838]
[1771635539569,0.5,84.569,84.527,29.57634838]
[1771635540081,0.5,84.569,84.53,4.30701037]
[1771635540380,0.5,84.569,84.54,4.30701037]
[1771635542975,0.5,84.569,84.531,41.40492836]
[1771635543483,0.5,84.569,84.54,4.30701037]
[1771635544269,0.5,84.569,84.541,11.82858021]
[1771635548588,0.5,84.579,84.541,41.40003074]
[1771635548791,0.5,84.579,84.55,4.30171265]
[1771635551185,0.5,84.579,84.52,4.30171265]
[1771635551186,0.28432314,84.574,84.526,0.50061792]
[1771635551384,4.30171265,84.56,84.526,0.50061792]
[1771635551589,3.69383402,84.575,84.531,0.50061792]
[1771635551590,4.30171265,84.57,84.531,0.50061792]
[1771635551900,11.82340561,84.578,84.541,0.50061792]
[1771635553792,11.82340561,84.578,84.51,94.66277725]
[1771635553793,4.30171265,84.55,84.518,0.50061792]
[1771635557200,4.30171265,84.55,84.487,5.36086188]
[1771635557201,4.30171265,84.53,84.481,0.50061792]
[1771635557403,4.30171265,84.53,84.491,0.50061792]
[1771635558480,4.30171265,84.53,84.493,0.50061792]
[1771635558903,4.30171265,84.55,84.501,0.50061792]
[1771635559202,4.30171265,84.53,84.492,41.42404014]
[1771635559402,0.79770013,84.51,84.492,11.83544004]
[1771635560282,4.30171265,84.5,84.48,29.59266221]
[1771635560786,0.47090544,84.508,84.461,5.64518502]
[1771635562298,0.47090544,84.508,84.471,0.4917211]
[1771635562603,3.50401252,84.507,84.471,0.4917211]
[1771635563302,3.50401252,84.507,84.472,41.43384789]
[1771635563597,3.50401252,84.507,84.473,0.4917211]
[1771635566485,3.50401252,84.507,84.475,0.4917211]
[1771635568509,3.50401252,84.507,84.477,0.4917211]
[1771635571507,0.47090544,84.525,84.49,4.30171265]
[1771635571705,0.47090544,84.525,84.491,0.4917211]
[1771635574310,0.47090544,84.525,84.493,0.4917211]
[1771635575420,0.47090544,84.525,84.495,0.4917211]
[1771635575811,0.47090544,84.519,84.495,0.4917211]
[1771635579622,0.47090544,84.519,84.497,0.51598019]
[1771635584324,0.47090544,84.519,84.499,0.51598019]
[1771635587225,0.47090544,84.519,84.501,0.51598019]
[1771635587623,0.51082306,84.509,84.477,0.51598019]
[1771635587926,0.51082306,84.519,84.481,0.51598019]
[1771635589623,0.51082306,84.519,84.483,0.51598019]
[1771635591108,0.51082306,84.519,84.491,0.51598019]
[1771635592611,0.51082306,84.519,84.493,0.51598019]
[1771635593714,0.51082306,84.519,84.495,0.51598019]
[1771635596623,0.51082306,84.519,84.497,0.51598019]
[1771635599132,0.51082306,84.519,84.499,0.51598019]
[1771635600230,3.69383402,84.548,84.146,158.3774954]
[1771635600231,0.51082306,84.537,84.501,0.51598019]
[1771635601332,0.51082306,84.537,84.511,0.51598019]
[1771635602426,0.51082306,84.537,84.513,0.51598019]
[1771635604519,0.51082306,84.537,84.515,0.51598019]
[1771635606032,0.51082306,84.537,84.514,11.83235913]
[1771635606336,0.51082306,84.537,84.515,0.51598019]
[1771635607237,0.51082306,84.537,84.517,0.51598019]
[1771635607429,0.53271764,84.541,84.517,0.51598019]
[1771635607745,0.53271764,84.549,84.517,0.51598019]
[1771635608251,47.29285102,84.58,84.516,11.83207913]
[1771635608252,0.49890944,84.554,84.531,0.54132243]
[1771635608449,0.49890944,84.566,84.531,0.54132243]
[1771635608620,0.49890944,84.566,84.541,0.54132243]
[1771635609341,0.49890944,84.566,84.543,0.54132243]
[1771635610745,0.49890944,84.566,84.545,0.54132243]
[1771635618240,0.49890944,84.574,84.545,0.54132243]
[1771635619747,11.82410461,84.573,84.545,0.54132243]
[1771635619949,0.49890944,84.572,84.545,0.54132243]
[1771635626152,0.49890944,84.569,84.545,0.54132243]
[1771635630448,11.82061041,84.598,84.547,0.54132243]
[1771635630752,0.49890944,84.603,84.571,0.54132243]
[1771635631151,4.30427283,84.6,84.571,0.54132243]
[1771635631347,0.49890944,84.599,84.571,0.54132243]
[1771635633056,0.49890944,84.599,84.573,0.54132243]
[1771635635655,0.49890944,84.609,84.581,0.54132243]
[1771635635872,0.49890944,84.609,84.58,4.30427283]
[1771635635873,4.40427283,84.62,84.58,4.30427283]
[1771635636045,0.1,84.62,84.591,0.54132243]
[1771635636244,0.49890944,84.619,84.591,0.54132243]
[1771635637557,0.49890944,84.619,84.592,11.82144883]
[1771635637739,0.49890944,84.619,84.593,0.53103838]
[1771635640144,0.49890944,84.619,84.595,0.53103838]
[1771635640868,0.1,84.62,84.601,0.53103838]
[1771635642869,0.53274026,84.619,84.601,0.53103838]
[1771635643368,0.53274026,84.619,84.602,12.35108991]
[1771635646361,0.53274026,84.619,84.603,0.53103838]
[1771635652463,0.53274026,84.619,84.604,0.53103838]
[1771635657174,0.53274026,84.619,84.591,12.35262696]
[1771635657385,0.53274026,84.609,84.581,0.53103838]
[1771635658169,0.53274026,84.609,84.581,12.35389319]
[1771635661095,0.53274026,84.607,84.576,0.53103838]
[1771635661265,0.53274026,84.607,84.571,11.82438424]
[1771635661266,0.53274026,84.589,84.571,11.82438424]
[1771635662664,0.53274026,84.589,84.571,12.35542262]
[1771635662870,0.53274026,84.589,84.572,0.53103838]
[1771635663364,0.53274026,84.589,84.573,12.35514299]
[1771635663766,0.53274026,84.589,84.574,0.53103838]
[1771635667593,0.53274026,84.589,84.575,11.823825]
[1771635668168,0.53274026,84.589,84.574,0.53103838]
[1771635668390,0.53274026,84.589,84.562,0.52125805]
[1771635669670,0.53274026,84.589,84.563,11.82550287]
[1771635669870,0.53274026,84.589,84.56,0.52125805]
[1771635670075,0.53274026,84.589,84.52,4.30019541]
[1771635670076,0.5061265,84.579,84.557,11.82626094]
[1771635670285,0.5061265,84.579,84.553,11.82688066]
[1771635674397,0.5061265,84.579,84.553,0.52125805]
[1771635675599,0.5061265,84.589,84.56,4.30019541]
[1771635675906,0.5061265,84.589,84.561,0.52125805]
[1771635676708,0.5061265,84.589,84.562,11.82564272]
[1771635677017,0.5061265,84.589,84.563,0.52125805]
[1771635679108,0.5061265,84.589,84.565,0.52125805]
[1771635685008,0.5061265,84.589,84.566,11.82508336]
[1771635686289,0.5061265,84.589,84.566,0.52125805]
[1771635691121,0.5061265,84.589,84.568,0.52125805]
[1771635701199,0.52283314,84.579,84.549,0.54907276]
[1771635703208,41.37702746,84.588,84.549,0.54907276]
[1771635703209,0.52283314,84.569,84.549,0.54907276]
[1771635704808,0.52283314,84.559,84.532,0.54907276]
[1771635705117,0.52283314,84.549,84.532,0.54907276]
[1771635706199,0.52283314,84.549,84.527,0.54907276]
[1771635706715,3.69383402,84.579,84.512,0.54907276]
[1771635706716,0.52283314,84.539,84.512,0.54907276]
[1771635710122,0.52283314,84.539,84.513,11.83249914]
[1771635710331,0.52283314,84.543,84.514,0.54907276]
[1771635711521,4.30019541,84.54,84.514,0.54907276]
[1771635712924,4.82302855,84.54,84.516,0.54907276]
[1771635713521,0.52283314,84.539,84.516,0.54907276]
[1771635715419,0.52283314,84.539,84.517,11.83193913]
[1771635715727,0.52283314,84.544,84.518,0.54907276]
[1771635715912,0.52283314,84.549,84.518,0.54907276]
[1771635716305,0.52283314,84.549,84.517,11.83193913]
[1771635716306,0.52283314,84.558,84.521,0.54907276]
[1771635717420,4.30019541,84.56,84.521,0.54907276]
[1771635717738,0.52283314,84.559,84.523,0.54907276]
[1771635718728,0.52283314,84.563,84.531,0.54907276]
[1771635719021,11.82468294,84.569,84.531,0.54907276]
[1771635719430,4.30019541,84.57,84.531,0.54907276]
[1771635719630,4.82302855,84.57,84.531,0.54907276]
[1771635720623,4.82302855,84.57,84.533,0.54907276]
[1771635721133,4.82302855,84.57,84.541,0.54907276]
[1771635721134,0.52283314,84.57,84.541,0.54907276]
[1771635721628,0.52283314,84.584,84.551,0.54907276]
[1771635724330,4.82302855,84.58,84.553,0.54907276]
[1771635724839,0.52283314,84.579,84.553,0.54907276]
[1771635726535,0.52283314,84.579,84.555,0.54907276]
[1771635729531,0.52283314,84.579,84.556,11.82648185]
[1771635729717,0.52283314,84.579,84.557,0.54941849]
[1771635731527,0.52283314,84.579,84.559,0.54941849]
[1771635734940,0.52283314,84.579,84.561,0.54941849]
[1771635736513,0.5643416,84.588,84.561,0.54941849]
[1771635736730,0.5643416,84.588,84.563,0.54941849]
[1771635740043,0.5643416,84.588,84.556,29.56590157]